[Event "VII Totalizator Sportowy 2022"]
[Site "Bydgoszcz"]
[Date "2022.06.29"]
[Round "5.4"]
[White "Kucza, Karol"]
[Black "Maksimenko, Andrei"]
[Result "1/2-1/2"]
[ECO "C42"]
[WhiteElo "2305"]
[BlackElo "2434"]
[Annotator "TA"]
[PlyCount "81"]
[EventDate "2022.06.25"]
[EventType "swiss"]
[EventCountry "POL"]
[SourceTitle "playchess.com"]
[Source "ChessBase"]
[SourceQuality "1"]
[TimeControl "40/5400+30:1800+30"]

{[%evp 15,81,23,39,35,30,21,60,37,38,46,42,44,39,43,77,79,72,57,61,60,78,78,73,46,50,49,55,46,45,40,54,45,55,43,57,22,22,10,21,22,52,27,57,56,56,56,56,56,56,56,64,64,64,64,72,24,72,62,62,64,59,64,64,64,66,73,102,0]} 1. e4 {[%emt 0:00:03]} e5 {[%emt 0:00:06]} 2. Nf3 {[%emt 0:00:05]} Nf6 {[%emt 0:00:06]} 3. Nxe5 {[%emt 0:04:03]} d6 {[%emt 0:00:15]} 4. Nf3 {[%emt 0:00:04]} Nxe4 {[%emt 0:00:04]} 5. Nc3 {[%emt 0:00:04]} Nxc3 {[%emt 0:00:23]} 6. dxc3 {[%emt 0:00:06]} Be7 {[%emt 0:00:29]} 7. Be3 {[%emt 0:00:05]} Nc6 {[%emt 0:00:31]} 8. Qd2 {[%emt 0:00:20]} Be6 {[%emt 0:00:37]} 9. O-O-O {[%emt 0:00:20] C42: Petroff Defence: 3 Nxe5 and unusual White 3rd moves.} Qd7 {[%emt 0:00:06]} (9... Bxa2 $2 10. b3 $18) 10. Kb1 {[%emt 0:00:05]} O-O {[%emt 0:09:07]} 11. h3 {[%emt 0:04:57] [#] White is slightly better.} Rfe8 $146 {[%emt 0:04:02]} ({Predecessor:} 11... Rab8 12. Bd3 b5 13. h4 Bf5 14. Nd4 Nxd4 15. Bxd4 c5 16. Bxf5 Qxf5 17. Be3 Rfe8 {½-½ (31) Mosconi,T (2453)-Lins,T (2440) ICCF email 2017}) 12. g4 {[%emt 0:03:20]} Rad8 {[%emt 0:05:00]} 13. Bg2 {[%emt 0:14:48]} Qc8 {[%emt 0:15:29]} 14. Ng5 {[%emt 0:04:19]} Bxg5 {[%emt 0:04:40]} 15. Bxg5 {[%emt 0:00:08]} f6 {[%emt 0:03:31]} 16. Be3 {[%emt 0:00:18]} a5 {[%emt 0:08:32]} 17. f4 {[%emt 0:10:38]} Bf7 {[%emt 0:13:46] [#] Strongly threatening ...Qe6.} 18. Rhe1 {[%emt 0:00:33]} Re7 {[%emt 0:06:38]} 19. Bf2 {[%emt 0:03:37]} Rxe1 {[%emt 0:01:21]} 20. Rxe1 {[%emt 0:00:07]} Re8 {[%emt 0:00:44]} 21. b3 {[%emt 0:00:20]} (21. Be4 {seems wilder.} a4 22. b3 Bg6 23. Bf3) 21... Rxe1+ {[%emt 0:11:27]} 22. Qxe1 {[%emt 0:00:08]} Qd7 {[%emt 0:00:24]} 23. c4 {[%emt 0:02:54]} a4 {[%emt 0:01:45]} 24. Kb2 {[%emt 0:00:16]} axb3 {[%emt 0:01:05]} 25. cxb3 {[%emt 0:01:19]} h5 {[%emt 0:02:18]} 26. Qd1 {[%emt 0:16:19]} hxg4 {[%emt 0:00:07]} 27. hxg4 {[%emt 0:02:02]} Nd8 {[%emt 0:04:50]} 28. Bd4 {[%emt 0:05:23]} d5 {[%emt 0:02:38]} 29. cxd5 {[%emt 0:01:02]} (29. Bc3 {is more complex.} c6 30. g5 Ne6 31. gxf6 Nxf4 32. Be4) 29... c6 $1 {[%emt 0:00:08]} 30. dxc6 $1 {[%emt 0:06:33]} Nxc6 {[%emt 0:00:03]} 31. Bxc6 {[%emt 0:00:09]} Qxc6 $14 {[%emt 0:00:35][%mdl 4096] Endgame KQB-KQB} 32. Qd2 {[%emt 0:03:45] Against Qg2} Qf3 {[%emt 0:01:46]} 33. g5 {[%emt 0:00:14]} fxg5 {[%emt 0:00:03]} 34. fxg5 {[%emt 0:00:06]} Bd5 {[%emt 0:00:25]} 35. Ka3 {[%emt 0:10:03]} (35. Qe3 $16) 35... Kf7 {[%emt 0:02:21]} (35... Qf8+ $11 36. Kb2 Qf3) 36. Qa5 {[%emt 0:03:09] aiming for Qc7+.} Kg6 {[%emt 0:00:39]} 37. Qd8 {[%emt 0:01:42]} Qf5 {[%emt 0:01:15]} 38. Qe7 {[%emt 0:01:11]} Qxg5 {[%emt 0:00:22]} 39. Qxg7+ {[%emt 0:00:13]} Kh5 {[%emt 0:00:59]} 40. Qh7+ {[%emt 0:00:00]} Kg4 {[%emt 0:00:00]} 41. Qg7 {[%emt 0:09:56] Weighted Error Value: White=0.09 (flawless) /Black=0.08 (flawless)} (41. Qc2 $16) 1/2-1/2

[Event "VII Totalizator Sportowy 2022"]
[Site "Bydgoszcz"]
[Date "2022.06.29"]
[Round "5.5"]
[White "Tomczak, Jacek"]
[Black "Prokofiev, Valentyn"]
[Result "1-0"]
[ECO "B42"]
[WhiteElo "2584"]
[BlackElo "2362"]
[Annotator "TA"]
[PlyCount "80"]
[EventDate "2022.06.25"]
[EventType "swiss"]
[EventCountry "POL"]
[SourceTitle "playchess.com"]
[Source "ChessBase"]
[SourceQuality "1"]
[TimeControl "40/5400+30:1800+30"]

{[%evp 14,80,29,27,31,27,27,0,0,0,0,0,0,-15,27,47,33,33,163,154,152,164,197,173,177,172,166,134,146,139,191,193,202,176,165,163,238,234,265,271,333,339,400,330,340,322,316,303,365,365,348,352,391,375,527,522,533,558,545,550,554,556,552,519,533,518,476,395,351]} 1. e4 {[%emt 0:00:04]} c5 {[%emt 0:00:03]} 2. Nf3 {[%emt 0:00:26]} e6 {[%emt 0:00:08]} 3. d4 {[%emt 0:00:06]} cxd4 {[%emt 0:00:05]} 4. Nxd4 {[%emt 0:00:15]} a6 {[%emt 0:00:04]} 5. Bd3 {[%emt 0:00:17]} Bc5 {[%emt 0:00:06]} 6. Nb3 {[%emt 0:00:21]} Ba7 {[%emt 0:00:04]} 7. Qg4 {[%emt 0:00:51]} Nf6 {[%emt 0:00:07]} 8. Qg3 {[%emt 0:00:09] Strongly threatening e5.} d6 {[%emt 0:00:44] B42: Sicilian: Kan Variation: 5 Bd3.} 9. Nc3 {[%emt 0:00:49]} (9. Qxg7 Rg8 10. Qh6 Bxf2+ $1 11. Kd1 Rxg2 $17) 9... Nc6 {[%emt 0:00:12]} 10. Bg5 {[%emt 0:00:19]} (10. Qxg7 Rg8 11. Qh6 Bxf2+ $1 12. Kd1 Rg6 $17) 10... h6 {[%emt 0:00:08] The position is equal.} 11. Bd2 {[%emt 0:00:32]} Nh5 {[%emt 0:02:20]} 12. Qf3 {[%emt 0:01:55]} Nf6 {[%emt 0:00:08]} 13. Be2 $5 {[%emt 0:09:00][%mdl 4] Leaves trodden paths.} Ne5 {[%emt 0:24:03]} 14. Qg3 {[%emt 0:06:47]} b5 {[%emt 0:02:58]} 15. f4 {[%emt 0:04:06]} (15. Qxg7 $2 Bxf2+ $1 {[%mdl 512]} 16. Kxf2 Rg8 17. Qxg8+ Nxg8 $19) 15... b4 {[%emt 0:02:05] This move loses the game for Black.} ({Black should try} 15... Ng6 $14 16. Bf3 Rb8) 16. fxe5 $18 {[%emt 0:10:56]} bxc3 {[%emt 0:00:09] [#]} 17. Bxc3 $146 {[%emt 0:00:32]} (17. exf6 $6 cxd2+ 18. Nxd2 (18. Kxd2 Qxf6 19. Raf1 Qg5+ 20. Qxg5 hxg5 $15) 18... Qxf6 $11) ({Predecessor:} 17. Qxc3 Bf2+ 18. Kf1 dxe5 19. Qxe5 Ba7 20. Bb4 Qb6 21. Bc5 Qc6 22. Rd1 Bxc5 23. Qxc5 Bb7 24. Qxc6+ Bxc6 25. Nc5 {1-0 (53) Fier,A (2572)-Leitao,R (2626) Americana 2010}) 17... dxe5 {[%emt 0:04:08]} 18. Rf1 {[%emt 0:09:39]} (18. Qxg7 $6 Bf2+ 19. Kxf2 Rh7 $16) (18. Qxe5 $6 Bb7 $14) 18... O-O {[%emt 0:07:52]} 19. Bxe5 {[%emt 0:04:19]} Ne8 {[%emt 0:01:11]} 20. Bc3 {[%emt 0:02:50]} Bb7 {[%emt 0:05:11]} 21. Bd3 $36 {[%emt 0:12:42][%mdl 2048] White is on the roll. 0x0.002229d0e724dp-1022s more active pieces. The black rooks are badly placed.} Bb8 {[%emt 0:03:17]} (21... Rc8 $16 22. O-O-O Qe7) 22. e5 {[%emt 0:00:51]} a5 {[%emt 0:03:21]} 23. a4 {[%emt 0:10:28]} Bd5 {[%emt 0:06:47]} 24. O-O-O {[%emt 0:02:27][%cal Od3e4]} Qc8 {[%emt 0:01:24]} (24... Qg5+ {keeps fighting.} 25. Qxg5 hxg5) 25. Kb1 {[%emt 0:03:01]} (25. Nxa5 Bc7) 25... Bc7 {[%emt 0:01:57]} 26. Bd2 {[%emt 0:02:13] And now Bxh6 would win.} Qb8 {[%emt 0:01:37]} 27. Rde1 {[%emt 0:00:50]} f6 {[%emt 0:01:15]} 28. c4 {[%emt 0:07:08]} Bxe5 {[%emt 0:02:55]} (28... Qxb3 $2 {[#]} 29. Bh7+ $1 {[%mdl 512]} Kxh7 30. Qxb3 $18) 29. Rxe5 {[%emt 0:00:36]} fxe5 {[%emt 0:00:40]} 30. cxd5 {[%emt 0:03:28] The board is on fire.} ({And not} 30. Bh7+ Kxh7 31. Rxf8 Be4+ 32. Ka1 Qc7 $17) 30... Rxf1+ {[%emt 0:00:07]} 31. Bxf1 {[%emt 0:00:02] This bishop pair is nice.} exd5 {[%emt 0:00:16]} 32. Bb5 {[%emt 0:01:19]} ({Not} 32. Nxa5 Nf6 33. Bb5 Ne4 $18) ({Weaker is} 32. Bxa5 Nd6 $16) 32... Nf6 {[%emt 0:01:32]} 33. Nxa5 {[%emt 0:02:39][%cal Bb3a5,Ba5c6,Bc6b4][%mdl 32]} Qd6 {[%emt 0:03:20]} (33... Ne4 {was worth a try.} 34. Qd3 Nxd2+ 35. Qxd2 Qd6) 34. Nc6 {[%emt 0:01:45]} Ne4 {[%emt 0:01:21]} 35. Bb4 {[%emt 0:00:54]} Qxb4 {[%emt 0:02:49]} 36. Nxb4 {[%emt 0:00:06]} Nxg3 {[%emt 0:00:03]} 37. hxg3 {[%emt 0:00:05]} d4 {[%emt 0:00:13]} 38. Nc6 {[%emt 0:00:17]} Kf7 {[%emt 0:00:21]} 39. Nxe5+ {[%emt 0:00:12]} Ke6 {[%emt 0:00:07]} 40. Nf3 {[%emt 0:00:00]} Kd5 {Weighted Error Value: White=0.06 (flawless) /Black=0.29 (precise)} 1-0

[Event "VII Totalizator Sportowy 2022"]
[Site "Bydgoszcz"]
[Date "2022.06.29"]
[Round "5.6"]
[White "Sernecki, Franciszek"]
[Black "Gumularz, Szymon"]
[Result "0-1"]
[ECO "A40"]
[WhiteElo "2272"]
[BlackElo "2513"]
[Annotator "TA"]
[PlyCount "60"]
[EventDate "2022.06.25"]
[EventType "swiss"]
[EventCountry "POL"]
[SourceTitle "playchess.com"]
[Source "ChessBase"]
[SourceQuality "1"]
[TimeControl "40/5400+30:1800+30"]

{[%evp 10,60,77,64,91,48,45,0,22,-75,-89,-77,-84,-86,-79,-135,-143,-181,-188,-192,-154,-161,-165,-169,-170,-162,-164,-160,-153,-175,-182,-216,-207,-233,-235,-269,-239,-334,-337,-470,-454,-437,-410,-375,-363,-987,-480,-558,-379,-542,-535,-505,-490]} 1. d4 {[%emt 0:00:36]} g6 {[%emt 0:00:05]} 2. e4 {[%emt 0:00:20]} d6 {[%emt 0:00:14]} 3. c4 {[%emt 0:00:55]} Bg7 {[%emt 0:00:08]} 4. Nc3 {[%emt 0:00:25]} c5 {[%emt 0:00:52]} 5. d5 {[%emt 0:00:34]} Bxc3+ {[%emt 0:02:08]} 6. bxc3 {[%emt 0:00:02]} e5 $1 {[%emt 0:00:09][%mdl 4] is recently more successful than 6...Qa5. A43: Schmid Benoni.} 7. dxe6 {[%emt 0:15:59]} Bxe6 {[%emt 0:00:06]} 8. Bf4 {[%emt 0:00:31]} Nf6 {[%emt 0:06:05] [#] The position is equal.} 9. Qxd6 $146 {[%emt 0:11:31]} (9. Bxd6 Nxe4 10. Bf4 Nc6 11. Qxd8+ Rxd8 $17) (9. f3 $11 {keeps the balance.}) ({Predecessor:} 9. e5 dxe5 10. Qxd8+ Kxd8 11. Bxe5 Ke7 12. O-O-O Rc8 13. Nf3 Ne4 14. Rg1 Nd7 15. Bg3 Nxc3 {0-1 (72) Ezat,M (2408)-Vrolijk,L (2480) Chess.com INT 2020}) 9... Qxd6 $17 {[%emt 0:09:40]} 10. Bxd6 {[%emt 0:00:07]} Nxe4 {[%emt 0:00:29]} 11. Bf4 {[%emt 0:01:58]} Nc6 {[%emt 0:02:29]} (11... Nxc3 $2 12. Be5 O-O 13. Bxc3 $18) 12. Rc1 {[%emt 0:03:08] [#]} (12. f3 $142 Nxc3 13. a4) 12... O-O-O $1 {[%emt 0:03:06] Black is more active.} 13. Be3 {[%emt 0:08:11]} b6 {[%emt 0:11:05]} 14. Nf3 {[%emt 0:04:11]} Na5 {[%emt 0:03:00]} 15. Ng5 {[%emt 0:06:27]} Nxg5 {[%emt 0:02:02]} 16. Bxg5 {[%emt 0:00:21]} Rd6 {[%emt 0:01:36]} (16... Bxc4 17. Bxd8 Re8+ 18. Kd2 Rxd8+ 19. Ke3 $11) (16... Rde8 17. f3 $17) 17. Rd1 {[%emt 0:02:41]} Rxd1+ {[%emt 0:02:11]} ({Inferior is} 17... Nxc4 18. Bxc4 Rxd1+ 19. Kxd1 $17) 18. Kxd1 {[%emt 0:00:09]} Re8 {[%emt 0:00:45]} ({Not} 18... Bxc4 19. Bxc4 Nxc4 20. Re1 $17) ({Weaker is} 18... Nxc4 19. Kc2 $17) 19. Be2 {[%emt 0:04:24]} Bxc4 {[%emt 0:01:38]} 20. Bg4+ {[%emt 0:00:50]} Kc7 {[%emt 0:11:48]} 21. a3 {[%emt 0:03:43]} Bd5 {[%emt 0:01:59]} 22. h4 {[%emt 0:02:47]} Bxg2 {[%emt 0:06:09]} 23. Rh2 {[%emt 0:01:33]} Bc6 {[%emt 0:06:00]} 24. h5 {[%emt 0:04:13]} f5 {[%emt 0:11:47]} 25. hxg6 {[%emt 0:06:40]} hxg6 {[%emt 0:00:29]} 26. Rh7+ {[%emt 0:01:17]} Kc8 {[%emt 0:00:44]} 27. Bh3 $2 {[%emt 0:00:28]} (27. Be2 Ba4+ 28. Kd2) 27... Ba4+ {[%emt 0:06:11]} (27... Bf3+ $142 28. Kc2 Re2+ 29. Kd3 c4+ 30. Kd4 Re4+ 31. Kd5 Rh4+ 32. Ke5 Rxh7) 28. Kc1 {[%emt 0:00:36]} Re2 {[%emt 0:02:22] [#] ...Nb3+ is the strong threat.} 29. Rxa7 {[%emt 0:02:22]} (29. Bg2 $142) 29... Rc2+ $19 {[%emt 0:01:42]} 30. Kb1 {[%emt 0:00:13]} Rxf2 {[%emt 0:00:07] Weighted Error Value: White=0.60/Black=0.31} 0-1

[Event "VII Totalizator Sportowy 2022"]
[Site "Bydgoszcz"]
[Date "2022.06.29"]
[Round "5.7"]
[White "Fiedorek, Michal"]
[Black "Janik, Igor"]
[Result "1/2-1/2"]
[ECO "B29"]
[WhiteElo "2315"]
[BlackElo "2525"]
[Annotator "TA"]
[PlyCount "142"]
[EventDate "2022.06.25"]
[EventType "swiss"]
[EventCountry "POL"]
[SourceTitle "playchess.com"]
[Source "ChessBase"]
[SourceQuality "1"]
[TimeControl "40/5400+30:1800+30"]

{[%evp 10,142,47,50,40,44,51,20,26,14,34,29,27,0,0,0,0,-10,0,-13,-25,-27,-32,-56,34,31,38,38,35,34,37,39,44,35,38,19,21,6,26,21,12,-2,-2,-2,0,0,0,0,0,0,27,27,46,14,14,13,20,-50,-50,-50,-50,-50,-50,-50,-50,-50,-50,-50,-50,-50,0,0,0,0,0,0,0,0,0,0,0,0,0,0,0,0,0,0,0,0,0,0,0,0,0,0,0,0,0,0,0,0,0,0,0,0,0,0,0,0,0,0,0,0,0,0,0,0,0,0,0,0,0,0,0,0,356,-8,0,0,2,0,0,0,2]} 1. e4 {[%emt 0:00:02][%cal Be2e4,Be4e5][%mdl 32]} c5 {[%emt 0:00:04]} 2. Nf3 {[%emt 0:00:07]} Nf6 {[%emt 0:00:06]} 3. e5 {[%emt 0:01:08]} Nd5 {[%emt 0:00:07]} 4. Nc3 {[%emt 0:01:25]} Nxc3 {[%emt 0:00:07]} 5. dxc3 {[%emt 0:00:31]} Nc6 {[%emt 0:00:11]} 6. Bf4 {[%emt 0:04:33]} Qb6 {[%emt 0:00:10] B29: Sicilian: 2 Nf3 Nf6 (Nimzowitsch Variation).} 7. Rb1 {[%emt 0:04:14]} Qc7 {[%emt 0:00:11]} 8. Qd2 {[%emt 0:09:22][%cal Oe5e6]} e6 {[%emt 0:00:41]} 9. Bd3 {[%emt 0:01:56]} h6 {[%emt 0:00:32]} 10. h4 {[%emt 0:11:01]} b6 {[%emt 0:01:35] [#]} 11. Qe3 $146 {[%emt 0:01:28]} ({Predecessor:} 11. h5 Bb7 12. Rh4 O-O-O 13. b4 Kb8 14. a4 cxb4 15. cxb4 d6 16. exd6 Bxd6 17. Bxd6 Qxd6 {½-½ (34) Ronka,E (2283)-Sklyarov,D (2455) Kuopio 2018}) 11... Bb7 {[%emt 0:01:14]} 12. O-O {[%emt 0:05:30]} Ne7 {[%emt 0:05:35]} 13. c4 {[%emt 0:07:08] Prevents Nd5.} g6 {[%emt 0:02:17]} 14. Be4 {[%emt 0:10:20]} Nf5 {[%emt 0:00:53]} 15. Qd3 {[%emt 0:00:44]} Be7 {[%emt 0:02:31]} 16. h5 {[%emt 0:02:56]} g5 {[%emt 0:04:05]} (16... O-O-O $1 $15) 17. Bh2 $14 {[%emt 0:01:19]} ({Of course not} 17. Bxf5 exf5 18. Bd2 Be4 $15) 17... Bxe4 {[%emt 0:11:58]} 18. Qxe4 {[%emt 0:00:17]} Qc6 {[%emt 0:02:43]} 19. Qxc6 {[%emt 0:10:17]} dxc6 {[%emt 0:00:02]} 20. g4 {[%emt 0:00:44]} Nd4 {[%emt 0:00:12]} 21. Nxd4 {[%emt 0:07:02]} cxd4 {[%emt 0:00:07]} 22. Rbd1 {[%emt 0:01:02]} c5 {[%emt 0:00:45]} 23. Kg2 {[%emt 0:01:22]} a6 {[%emt 0:00:26]} 24. a4 {[%emt 0:00:54]} O-O {[%emt 0:00:48]} 25. f4 {[%emt 0:05:49]} b5 {[%emt 0:01:11]} 26. b3 {[%emt 0:08:38]} bxc4 {[%emt 0:20:57]} 27. bxc4 {[%emt 0:00:04]} Rab8 {[%emt 0:00:23]} 28. Rb1 {[%emt 0:00:06]} Rfc8 {[%emt 0:00:04] White must now prevent ...Rb4.} 29. Rfd1 {[%emt 0:00:55]} Bd8 {[%emt 0:03:48]} 30. Kf3 {[%emt 0:00:28]} Kh7 {[%emt 0:03:37]} 31. f5 {[%emt 0:01:01]} Kg7 {[%emt 0:05:08]} 32. Ke4 {[%emt 0:00:16]} Kf8 {[%emt 0:00:56]} 33. Rb3 {[%emt 0:02:40]} ({White should try} 33. Bg3 $11) 33... Rxb3 $1 $15 {[%emt 0:00:34]} 34. cxb3 {[%emt 0:00:05][%mdl 4096] Endgame KRB-KRB} Rb8 {[%emt 0:00:17]} 35. Rb1 {[%emt 0:01:06]} Ke7 {[%emt 0:02:12]} 36. Bg3 {[%emt 0:00:56]} Ba5 $1 {[%emt 0:00:31]} 37. f6+ {[%emt 0:00:53]} Kd7 {[%emt 0:00:44]} 38. Kd3 {[%emt 0:00:04]} Kc6 {[%emt 0:00:06]} 39. Kc2 {[%emt 0:00:06]} d3+ {[%emt 0:13:47]} (39... Bc3 $15) 40. Kxd3 $11 {[%emt 0:00:00]} Rd8+ {[%emt 0:00:00]} 41. Ke2 {[%emt 0:06:25]} Rd2+ $1 {[%emt 0:00:57]} 42. Ke3 {[%emt 0:01:21]} Rg2 {[%emt 0:07:46]} 43. Kf3 {[%emt 0:02:08]} Rc2 {[%emt 0:00:05]} 44. Ke4 $1 {[%emt 0:06:49]} Bc3 {[%emt 0:04:35]} (44... Rg2 $5 45. Kf3 Rc2 $11) 45. Rd1 {[%emt 0:07:38] [#] Rd6+ is the strong threat.} Bd4 {[%emt 0:00:26] Threatens to win with ...Re2+.} 46. Rd3 {[%emt 0:02:45]} Kb6 {[%emt 0:03:11]} 47. Kf3 {[%emt 0:01:39]} Rb2 {[%emt 0:00:31]} 48. Ke4 {[%emt 0:01:01]} Rb1 {[%emt 0:00:13] And now ...Ka5 would win.} 49. Kf3 $1 {[%emt 0:00:15]} Rb2 {[%emt 0:04:51]} 50. Ke4 {[%emt 0:01:05]} Kc7 {[%emt 0:00:08]} 51. Kf3 {[%emt 0:00:15]} Kc6 {[%emt 0:00:22]} 52. Ke4 {[%emt 0:00:12]} Kb6 {[%emt 0:00:42]} 53. Kf3 $1 {[%emt 0:00:05]} Rc2 {[%emt 0:00:07]} 54. Ke4 {[%emt 0:03:21]} Rc1 {[%emt 0:01:04]} 55. Kf3 $1 {[%emt 0:00:13]} Ka5 {[%emt 0:03:35]} 56. Ke2 {[%emt 0:00:06]} Rg1 {[%emt 0:00:41]} 57. Be1+ {[%emt 0:00:51]} Kb6 {[%emt 0:00:09]} 58. Bg3 {[%emt 0:01:08]} Rg2+ {[%emt 0:05:58]} 59. Kf3 {[%emt 0:00:22]} Ra2 {[%emt 0:00:16]} 60. Ke4 {[%emt 0:00:46]} Ra1 {[%emt 0:00:58]} 61. Kf3 $1 {[%emt 0:00:06]} Rf1+ {[%emt 0:00:34]} 62. Ke2 {[%emt 0:00:25]} Rg1 {[%emt 0:00:16]} 63. Kf3 {[%emt 0:00:42]} Ka5 {[%emt 0:00:38]} 64. Ke2 {[%emt 0:00:11]} Kb4 65. Be1+ Ka3 66. a5 Rxg4 {aiming for ...Kb2.} 67. b4+ Ka4 $2 {[%mdl 8192] [#]} (67... Kb2 $1 $11 {and Black has nothing to worry.}) 68. bxc5 $2 ({White has to play} 68. b5 $1 $18 {[%cal Rb5a6]} Rg2+ 69. Kd1) 68... Bxe5 {The position is equal.} (68... Bxc5 $5 69. Rd7 Re4+ 70. Kf1 Rxe5 71. Rxf7 Kb3 $15) 69. Rd7 Re4+ 70. Kd1 Rxc4 71. Rxf7 {Strongly threatening Re7.} Rxc5 {Weighted Error Value: White=0.06 (flawless) /Black=0.05 (flawless)} 1/2-1/2

[Event "VII Totalizator Sportowy 2022"]
[Site "Bydgoszcz"]
[Date "2022.06.29"]
[Round "5.8"]
[White "Jarmula, Lukasz"]
[Black "Ulasevich, Sergei"]
[Result "1-0"]
[ECO "A45"]
[WhiteElo "2459"]
[BlackElo "2217"]
[Annotator "TA"]
[PlyCount "93"]
[EventDate "2022.06.25"]
[EventType "swiss"]
[EventCountry "POL"]
[SourceTitle "playchess.com"]
[Source "ChessBase"]
[SourceQuality "1"]
[TimeControl "40/5400+30:1800+30"]

{[%evp 9,93,0,0,0,3,0,0,0,6,0,0,0,0,0,0,0,0,0,0,0,0,0,47,31,50,46,97,93,86,79,152,126,134,135,141,137,154,138,164,118,123,99,131,125,116,124,72,0,0,0,0,0,109,-37,-34,-33,-33,-290,-288,-305,-275,-304,-289,-287,-5,-312,77,91,81,80,142,136,209,141,297,275,277,278,412,404,712,712,698,580,518,491]} 1. d4 {[%emt 0:00:02]} Nf6 {[%emt 0:00:09]} 2. Bf4 {[%emt 0:00:06]} d5 {[%emt 0:00:20]} 3. e3 {[%emt 0:00:07]} c5 {[%emt 0:00:06]} 4. Nf3 {[%emt 0:00:05]} Nc6 {[%emt 0:00:07]} 5. Nbd2 {[%emt 0:00:07]} Qb6 {[%emt 0:01:57][%csl LRb2,LRd4][%cal Rc5d4]} 6. dxc5 {[%emt 0:00:21] D02: 1 d4 d5 2 Nf3 sidelines, including 2...Nf6 3 g3 and 2...Nf6 3 Bf4.} Qxb2 {[%emt 0:00:10]} 7. Rb1 {[%emt 0:00:08]} Qc3 {[%emt 0:00:15]} 8. Bb5 {[%emt 0:00:07] The position is equal.} g6 {[%emt 0:00:20] now scores much better than the old 8...e6.} 9. O-O {[%emt 0:00:32] Strongly threatening Be5.} Bg7 $1 {[%emt 0:01:17]} 10. Nb3 {[%emt 0:00:12][%cal Oe3e4,Bd2b3,Bb3c1,Bc1d3,Bd3e5,Be5c6][%mdl 32] e4! is the strong threat.} O-O {[%emt 0:04:13]} 11. Bxc6 {[%emt 0:00:12]} bxc6 {[%emt 0:00:08]} 12. Be5 $36 {[%emt 0:00:06][%mdl 2048] Black is under pressure.} Qc4 {[%emt 0:15:40]} 13. Qd4 {[%emt 0:00:09]} (13. Qd3 {seems wilder.} Ba6 14. Rfd1 Qa4 15. Qd4) 13... Qxd4 {[%emt 0:07:52]} (13... Ba6 {is interesting.} 14. Qb2 Qa4 15. Rfc1 Rac8) 14. exd4 {[%emt 0:00:10]} a5 {[%emt 0:01:54] [#]} 15. Nc1 $146 {[%emt 0:01:07]} ({Predecessor:} 15. a4 Bf5 16. Rb2 Ne4 17. Bxg7 Kxg7 18. Ne5 Rfc8 19. g4 f6 20. Nxc6 Rxc6 21. gxf5 gxf5 {½-½ (102) Demchenko,A (2632)-Abdusattorov,N (2627) Chess.com INT 2020}) 15... Bg4 {[%emt 0:18:24]} (15... Ba6 $11) 16. Re1 {[%emt 0:09:10]} Ra7 {[%emt 0:06:34]} 17. Nd3 {[%emt 0:02:32]} Bh6 {[%emt 0:06:23]} (17... Rc8 $14) 18. Bb8 $1 $16 {[%emt 0:04:40]} Ra8 {[%emt 0:00:17]} 19. Bg3 {[%emt 0:00:43]} Be6 {[%emt 0:21:42]} (19... Ra7 $142) 20. Nde5 {[%emt 0:04:18]} Rfc8 {[%emt 0:00:07]} 21. Rb6 {[%emt 0:02:14]} Ne4 {[%emt 0:00:12]} 22. Nxc6 {[%emt 0:02:55] Pair of Knights!} Kf8 {[%emt 0:00:09]} 23. Nce5 {[%emt 0:02:04] White is much more active.} Ra7 {[%emt 0:00:33]} 24. a3 {[%emt 0:04:48]} (24. h3 $18) 24... Bf5 {[%emt 0:02:10]} 25. c4 {[%emt 0:03:40]} f6 {[%emt 0:01:50]} 26. Nc6 {[%emt 0:07:35]} (26. cxd5 fxe5 27. Nxe5 Bd2 $15) 26... Rxc6 {[%emt 0:00:04]} 27. Rxc6 {[%emt 0:00:06]} dxc4 {[%emt 0:00:04][%cal Bd5c4,Bc4c3][%mdl 32]} 28. d5 {[%emt 0:06:22]} (28. Rb6 $16) 28... c3 $1 $11 {[%emt 0:01:08] White must now prevent ...c2.} 29. Nd4 {[%emt 0:01:03] aiming for d6.} Bd2 $1 {[%emt 0:00:46]} 30. Ra1 {[%emt 0:02:13]} Rb7 {[%emt 0:03:31]} (30... a4 $1 $11 {keeps the balance.}) 31. Rb6 {[%emt 0:08:11]} (31. Rc7 $16 Rb2 32. d6) 31... Nxc5 $15 {[%emt 0:00:51]} 32. Rxb7 {[%emt 0:04:36]} Nxb7 {[%emt 0:00:01]} 33. Nxf5 $2 {[%emt 0:01:15][%mdl 8192]} (33. Nf3 $15 Nc5 34. Nxd2 cxd2 35. Rd1) 33... gxf5 {[%emt 0:00:36][%cal Bg6f5,Bf5f4][%mdl 4128] Endgame KRB-KBN} 34. Ra2 {[%emt 0:00:13]} f4 {[%emt 0:01:09]} 35. Bh4 {[%emt 0:01:05]} Nd6 {[%emt 0:00:21]} 36. f3 {[%emt 0:01:06]} Nb5 $2 {[%emt 0:02:31]} (36... Nf5 $1 $19 {[%cal Rf5h4]} 37. d6 Ke8) 37. Bf2 {[%emt 0:01:12][%mdl 8192]} (37. Kf1 $1 $11) 37... Nxa3 $2 {[%emt 0:01:20]} 38. Bc5 $16 {[%emt 0:00:27]} ({Stronger than} 38. Rxa3 c2 39. Ra1 c1=Q+ 40. Rxc1 Bxc1 $17) 38... Nc4 {[%emt 0:01:16] [#]} 39. Kf2 $1 {[%emt 0:02:09][%mdl 1024] White has strong compensation.} Nb2 {[%emt 0:02:08]} ({Better is} 39... a4) 40. Ke2 {[%emt 0:00:00]} a4 {[%emt 0:00:00]} (40... Kf7 $16 41. Rxa5 c2 42. Kxd2 Nc4+ 43. Kxc2 Nxa5) 41. Ba3 {[%emt 0:05:05]} Bc1 $2 {[%emt 0:25:39]} (41... Be3 $16 {is a better defense.} 42. Bxb2 cxb2 43. Rxb2 Bc5) 42. Bb4 $18 {[%emt 0:03:12]} Bd2 {[%emt 0:00:21]} 43. Ra3 {[%emt 0:00:56]} Nc4 {[%emt 0:00:44]} (43... Ke8 {was called for.} 44. Bxc3 Bxc3) 44. Rxa4 {[%emt 0:01:13] Threatens to win with Ra8+.} Ne3 {[%emt 0:00:05]} (44... Nb6 $142) 45. d6 {[%emt 0:00:38] White is clearly winning.} exd6 {[%emt 0:00:11]} 46. Bxd6+ {[%emt 0:00:13][%mdl 64] Discovered Attack, Double Attack} ({Weaker is} 46. Kd3 Nxg2 47. Bxc3 (47. Bxd6+ Kg7 $16) 47... Bxc3 $16) 46... Kf7 {[%emt 0:00:22]} 47. Bxf4 {[%emt 0:01:07] Never resign too early!  Weighted Error Value: White=0.41/Black=0.49} 1-0